fUST/lending_fUST_20260209
["ID","MTS","AMOUNT","RATE_DAILY","PERIOD"]
[404801374,1770577832374,-298.19797834,0.00025189,2]
[404801375,1770577832384,-361.14705588,0.00025189,2]
[404801376,1770577832393,-5287.88157115,0.00025189,2]
[404801377,1770577832403,-1555.0354006,0.0002519,2]
[404801378,1770577832412,-405.95,0.0002519,10]
[404801379,1770577832423,-3719.26407661,0.000252,2]
[404801626,1770577840609,-338.29,0.0002519,10]
[404801628,1770577840619,-1303.46271151,0.000252,2]
[404801630,1770577840663,-585.42899615,0.000252,2]
[404802058,1770577844912,-281.91,0.0002519,10]
[404802060,1770577844922,-1247.77989098,0.000252,2]
[404802233,1770577846582,-7576.16129558,0.000252,2]
[404803668,1770578758295,500.0,0.00025199,120]
[404803669,1770578758480,500.0,0.00025199,120]
[404803670,1770578758722,300.0,0.00025199,120]
[404803672,1770578883510,200.0,0.00016438,2]
[404803674,1770578973844,500.0,0.00026111,120]
[404803675,1770578974252,500.0,0.00026111,120]
[404803679,1770579003989,618.29878186,0.00013699,2]
[404803707,1770579031498,-600.0,0.00023214,2]
[404803709,1770579031508,-150.0,0.00023239,2]
[404803710,1770579031518,-500.0,0.00023263,2]
[404803711,1770579031527,-6610.95207011,0.000236,2]
[404803712,1770579031536,-500.0,0.000236,2]
[404803713,1770579031546,-500.0,0.00023765,2]
[404803714,1770579031555,-600.0,0.00024011,2]
[404803715,1770579031564,-500.0,0.00024548,2]
[404803716,1770579031574,-500.0,0.00024637,2]
[404803717,1770579031583,-600.0,0.00024958,2]
[404803718,1770579031592,-7419.83353663,0.00025,2]
[404803719,1770579031600,-500.0,0.00025003,7]
[404803720,1770579031609,-202.64,0.000251,7]
[404803721,1770579031619,-705.6286368,0.00025158,2]
[404803722,1770579031628,-3000.0,0.00025189,2]
[404803723,1770579031637,-364.36036496,0.00025189,2]
[404803724,1770579031646,-197.30255262,0.00025189,2]
[404803725,1770579031655,-500.0,0.00025199,10]
[404803726,1770579031664,-508.17256698,0.00025199,10]
[404803727,1770579031674,-177.0,0.00025239,2]
[404803728,1770579031683,-500.0,0.00025694,2]
[404803729,1770579031692,-64.07285531,0.00025694,2]
[404803730,1770579034749,200.0,0.00027,120]
[404803760,1770579037708,-500.0,0.00025188,2]
[404803762,1770579037717,-500.0,0.00025188,2]
[404803764,1770579037726,-333.9218266,0.00025188,2]
[404803766,1770579037735,-500.0,0.00025188,2]
[404803768,1770579037744,-500.0,0.00025188,2]
[404803770,1770579037753,-250.04785156,0.00025188,2]
[404803772,1770579037761,-500.0,0.00025188,2]
[404803774,1770579037770,-500.0,0.00025188,2]
[404803776,1770579037779,-500.0,0.00025188,2]
[404803778,1770579037788,-500.0,0.00025188,2]
[404803780,1770579037800,-221.21850461,0.00025188,2]
[404803782,1770579037809,-500.0,0.00025188,2]
[404803784,1770579037818,-288.18779024,0.00025188,2]
[404803786,1770579037826,-500.0,0.00025188,2]
[404803788,1770579037835,-500.0,0.00025188,2]
[404803790,1770579037844,-500.0,0.00025188,2]
[404803792,1770579037853,-500.0,0.00025188,2]
[404803794,1770579037861,-500.0,0.00025188,2]
[404803796,1770579037871,-500.0,0.00025188,2]
[404803798,1770579037879,-500.0,0.00025188,2]
[404803800,1770579037888,-500.0,0.00025188,2]
[404803802,1770579037897,-300.0,0.00025695,10]
[404803804,1770579037906,-300.0,0.00025695,10]
[404803806,1770579037915,-300.0,0.00025695,10]
[404803808,1770579037924,-300.0,0.00025695,10]
[404803810,1770579037932,-300.0,0.00025695,10]
[404803812,1770579037942,-300.0,0.00025695,10]
[404803814,1770579037950,-300.0,0.00025695,10]
[404803816,1770579037959,-300.0,0.00025695,10]
[404803818,1770579037968,-300.0,0.00025695,10]
[404803820,1770579037977,-300.0,0.00025695,10]
[404803822,1770579037986,-300.0,0.00025695,10]
[404803824,1770579037995,-300.0,0.00025695,10]
[404803826,1770579038005,-300.0,0.00025695,10]
[404803828,1770579038014,-300.0,0.00025695,10]
[404803830,1770579038023,-300.0,0.00025695,10]
[404803832,1770579038035,-600.0,0.00026064,7]
[404803834,1770579038046,-207.36244806,0.00026101,2]
[404803836,1770579038055,-424.75843647,0.00026101,2]
[404803838,1770579038066,-234.93,0.00026102,10]
[404803840,1770579038076,-195.77,0.00026102,10]
[404803842,1770579038085,-163.14,0.00026102,10]
[404803844,1770579038095,-8116.49585372,0.00026102,2]
[404803846,1770579038107,-151.0,0.00026112,2]
[404803848,1770579038116,-245.0,0.00026112,2]
[404803850,1770579038126,-2865.0990237,0.00026112,2]
[404803852,1770579038135,-1000.0,0.00026112,30]
[404803854,1770579038145,-193.6464507,0.00026112,2]
[404803856,1770579038154,-1996.3423444,0.00026112,2]
[404803858,1770579038164,-310.276631,0.00026112,2]
[404803860,1770579038173,-697.2817548,0.00026112,2]
[404803862,1770579038182,-300.0,0.00026112,2]
[404803864,1770579038192,-9014.29535814,0.00026112,2]
[404803866,1770579038204,-774.49667101,0.00026112,2]
[404803873,1770579039828,-9413.27501543,0.00026112,2]
[404803896,1770579045806,-722.528,0.00026112,2]
[404803897,1770579090350,454.65002405,0.000189,2]
[404803905,1770579139018,500.0,0.00023308,2]
[404803906,1770579139493,500.0,0.0002332,2]
[404803907,1770579139955,500.0,0.00023524,2]
[404803908,1770579140397,457.87481296,0.00023673,2]
[404803916,1770580152820,203.28543335,0.00021814,2]
[404803944,1770580237793,-150.0,0.00023058,2]
[404803945,1770580237802,-250.95,0.000236,2]
[404803946,1770580237811,-294.20280196,0.00023628,2]
[404803947,1770580237847,-205.79719804,0.00023628,2]
[404803948,1770580237856,-1444.97050431,0.00023727,2]
[404803952,1770580239987,-5070.57329571,0.00023727,2]
[404803954,1770580239997,-55.22538818,0.00023794,2]
[404803956,1770580240008,-444.77461182,0.00023794,2]
[404803957,1770580240018,-199.73664498,0.00023912,2]
[404803958,1770580240040,-300.26335502,0.00023912,2]
[404803959,1770580240051,-300.0,0.00024071,10]
[404803960,1770580240060,-300.0,0.00024071,10]
[404803961,1770580240070,-300.0,0.00024071,10]
[404803962,1770580240081,-300.0,0.00024071,10]
[404803963,1770580240091,-300.0,0.00024071,10]
[404803964,1770580240099,-300.0,0.00024071,10]
[404803965,1770580240108,-300.0,0.00024071,10]
[404803966,1770580240117,-300.0,0.00024071,10]
[404803967,1770580240127,-300.0,0.00024071,10]
[404803968,1770580240136,-300.0,0.00024071,10]
[404803969,1770580240147,-300.0,0.00024071,10]
[404803970,1770580240157,-300.0,0.00024071,10]
[404803971,1770580240166,-300.0,0.00024071,10]
[404803972,1770580240175,-300.0,0.00024071,10]
[404803973,1770580240184,-300.0,0.00024071,10]
[404803974,1770580240193,-500.0,0.00024147,2]
[404803975,1770580240202,-1000.0,0.00024191,30]
[404803976,1770580240211,-500.0,0.00024302,2]
[404803977,1770580240220,-500.0,0.00024457,2]
[404803978,1770580240230,-500.0,0.00024548,2]
[404803979,1770580240239,-600.0,0.00024551,10]
[404803980,1770580240248,-500.0,0.00024561,2]
[404803981,1770580240258,-259.71515303,0.00024629,4]
[404803982,1770580240267,-500.0,0.00025,7]
[404803983,1770580240278,-177.0,0.00025058,2]
[404803984,1770580240287,-355.14459471,0.000252,2]
[404803985,1770580240297,-185.44514079,0.000252,2]
[404803986,1770580240307,-196.27195089,0.000252,2]
[404803987,1770580240317,-500.0,0.00025358,7]
[404803988,1770580240326,-500.0,0.00025527,7]
[404803989,1770580240336,-500.0,0.00025662,7]
[404803990,1770580240346,-500.0,0.00025861,7]
[404803991,1770580240355,-580.1353894,0.0002601,2]
[404803992,1770580240365,-305.5608724,0.0002601,2]
[404803993,1770580240374,-500.0,0.00026033,7]
[404803994,1770580240384,-442.9,0.0002607,2]
[404803995,1770580240396,-739.71,0.00026102,10]
[404803996,1770580240406,-616.42,0.00026102,10]
[404803997,1770580240415,-513.68,0.00026102,10]
[404803998,1770580240424,-428.07,0.00026102,10]
[404803999,1770580240434,-297.33090553,0.00026111,2]
[404804000,1770580240443,-6005.124429,0.00026112,2]
[404804012,1770580244201,-3871.1214413,0.00026112,2]
[404804014,1770580244255,-28572.11232014,0.00026112,2]
[404804025,1770580245913,-1644.35823426,0.00026112,2]
[404804026,1770580245928,-297.75061574,0.00026103,10]
[404804027,1770580245940,-58.97938426,0.00026103,10]
[404804028,1770580245949,-463.7702659,0.00026112,2]
[404804029,1770580245960,-469.02863032,0.00026112,2]
[404804030,1770580245971,-7000.75902884,0.00026112,2]
[404804031,1770580245982,-3008.28133464,0.00026112,2]
[404804032,1770580245997,-368.1946,0.00026112,2]
[404804033,1770580246008,-3362.70846954,0.00026112,2]
[404804036,1770580339733,303.10001603,0.000189,2]
[404804037,1770580339778,303.10001603,0.00019089,2]
[404804038,1770580339821,303.10001603,0.00019278,2]
[404804039,1770580339880,303.10001603,0.00019467,2]
[404804040,1770580339940,303.10001601,0.00019656,2]
[404804049,1770580835109,309.30605,0.00027,120]
[404804051,1770580938609,-242.58,0.000232,2]
[404804052,1770580938636,-500.0,0.000232,2]
[404804053,1770580938663,-500.0,0.000232,2]
[404804054,1770580938692,-150.0,0.0002321,2]
[404804055,1770580938765,-201.35655765,0.00023225,2]
[404804057,1770580967915,-300.0,0.00022597,2]
[404804058,1770580967940,-98.64344235,0.00023225,2]
[404804059,1770580968002,-595.2931153,0.00023226,2]
[404804060,1770581015563,-5799.34823348,0.00023226,2]
[404804061,1770581015587,-704.0,0.00023385,2]
[404804062,1770581015613,-300.0,0.00023385,2]
[404804063,1770581015636,-3196.65176652,0.00023386,2]
[404804064,1770581019589,74714.69066429,0.00022,2]
[404804065,1770581024123,-10000.0,0.00023386,2]
[404804066,1770581025826,-10000.0,0.00023386,2]
[404804067,1770581027132,-10000.0,0.00023386,2]
[404804068,1770581028332,-4783.37941318,0.00023386,2]
[404804069,1770581028354,-1001.0736353,0.000237,2]
[404804070,1770581028376,-500.0,0.00023768,2]
[404804071,1770581028402,-300.0,0.00023852,10]
[404804072,1770581028424,-300.0,0.00023852,10]
[404804073,1770581028449,-300.0,0.00023852,10]
[404804074,1770581028473,-300.0,0.00023852,10]
[404804075,1770581028497,-300.0,0.00023852,10]
[404804076,1770581028521,-300.0,0.00023852,10]
[404804077,1770581028544,-300.0,0.00023852,10]
[404804078,1770581028569,-300.0,0.00023852,10]
[404804079,1770581028593,-300.0,0.00023852,10]
[404804080,1770581028616,-300.0,0.00023852,10]
[404804081,1770581028641,-300.0,0.00023852,10]
[404804082,1770581028668,-300.0,0.00023852,10]
[404804083,1770581028694,-115.54695152,0.00023852,10]
[404804084,1770581030926,-184.45304848,0.00023852,10]
[404804085,1770581030950,-300.0,0.00023852,10]
[404804086,1770581030974,-300.0,0.00023852,10]
[404804087,1770581030995,-9215.54695152,0.00024185,2]
[404804088,1770581042695,-300.0,0.00024184,2]
[404804089,1770581042717,-9700.0,0.00024185,2]
[404804090,1770581060656,-1429.85588998,0.00024185,2]
[404804091,1770581060679,-151.0,0.00024185,2]
[404804092,1770581060703,-600.0,0.00024328,10]
[404804093,1770581060725,-244.35124433,0.00024629,4]
[404804094,1770581060746,-151.0,0.00025136,2]
[404804095,1770581060767,-2000.0,0.00025136,2]
[404804096,1770581060789,-2074.0,0.00025136,2]
[404804097,1770581060813,-2150.738,0.00025136,2]
[404804098,1770581060835,-1199.05486569,0.00025136,2]
[404804099,1770581063600,-1031.26044031,0.00025136,2]
[404804100,1770581063622,-2312.83697232,0.00025136,2]
[404804101,1770581063645,-2398.4119403,0.00025136,2]
[404804102,1770581063672,-2487.15318209,0.00025136,2]
[404804103,1770581063695,-1770.33746498,0.00025136,2]
[404804104,1770581065307,-187.51853502,0.00025136,2]
[404804105,1770581065329,-151.0,0.00025191,2]
[404804106,1770581065353,-2030.296672,0.00025191,2]
[404804107,1770581065376,-177.0,0.0002521,2]
[404804108,1770581065399,-1049.94589664,0.00025246,2]
[404804109,1770581065423,-300.0,0.00025638,10]
[404804110,1770581065447,-300.0,0.00025638,10]
[404804111,1770581065470,-300.0,0.00025638,10]
[404804112,1770581065496,-300.0,0.00025638,10]
[404804113,1770581065521,-300.0,0.00025638,10]
[404804114,1770581065546,-300.0,0.00025638,10]
[404804115,1770581065570,-300.0,0.00025638,10]
[404804116,1770581065594,-300.0,0.00025638,10]
[404804117,1770581065618,-300.0,0.00025638,10]
[404804118,1770581065643,-300.0,0.00025638,10]
[404804119,1770581065670,-300.0,0.00025638,10]
[404804120,1770581065693,-300.0,0.00025638,10]
[404804121,1770581065715,-300.0,0.00025638,10]
[404804122,1770581065739,-300.0,0.00025638,10]
[404804123,1770581065762,-300.0,0.00025638,10]
[404804124,1770581065782,-1904.23889634,0.00025674,2]
[404804125,1770581079324,-1940.20089592,0.00025674,2]
[404804126,1770581079348,-2579.17784983,0.00025684,2]
[404804127,1770581079370,-1360.93940282,0.00025763,4]
[404804128,1770581079394,-3054.4804953,0.00025866,2]
[404804129,1770581079417,-151.0,0.0002593,2]
[404804130,1770581118358,557.0667356,0.00025136,2]
[404804131,1770581123840,357.13462053,0.00025996,2]
[404804133,1770581194571,-4358.99019008,0.00025996,2]
[404804134,1770581195768,593.33521936,0.00025763,4]
[404804135,1770581209097,150.0,0.00025643,2]
[404804136,1770581238894,500.0,0.00024117,2]
[404804137,1770581248540,500.0,0.00023475,2]
[404804138,1770581252002,500.0,0.00023201,2]
[404804139,1770581252444,500.0,0.00024298,2]
[404804140,1770581254629,151.62002564,0.00023774,2]
[404804141,1770581259010,2746.05456492,0.0001,2]
[404804142,1770581259043,6167.19543508,0.0001,2]
[404804164,1770581431968,-2107.91644835,0.00025981,2]
[404804166,1770581431979,-2018.69276096,0.00025981,2]
[404804167,1770581431988,-300.0,0.0002608,2]
[404804169,1770581431998,-5428.12771408,0.0002608,2]
[404804171,1770581432009,-773.20202691,0.0002608,2]
[404804173,1770581432019,-213.79897065,0.00026101,2]
[404804175,1770581432029,-206.57115936,0.00026101,2]
[404804176,1770581432038,-333.46745216,0.00026112,2]
[404804177,1770581432047,-450.29905041,0.00026112,2]
[404804178,1770581432056,-163.72,0.000262,7]
[404804179,1770581432067,-162.58,0.000262,7]
[404804180,1770581432077,-168.67,0.000262,7]
[404804181,1770581432087,-174.08,0.000262,7]
[404804182,1770581432098,-928.89,0.00026278,3]
[404804183,1770581432107,-232.22,0.00026278,3]
[404804184,1770581432117,-696.7,0.00026341,3]
[404804185,1770581432127,-464.44,0.00026351,3]
[404804186,1770581432137,-500.0,0.00026477,7]
[404804187,1770581432146,-826.28463743,0.00026572,2]
[404804188,1770581432155,-600.0,0.00026617,30]
[404804189,1770581432164,-625.95688181,0.00026772,2]
[404804190,1770581432175,-590.13902029,0.00026772,2]
[404804191,1770581432185,-6.86097971,0.000268,2]
[404804249,1770581438271,-774.13902029,0.000268,2]
[404804251,1770581438282,-809.72775245,0.00027132,2]
[404804253,1770581438291,-500.0,0.00027161,7]
[404804255,1770581438300,-178.86898748,0.00027244,7]
[404804257,1770581438312,-321.13101252,0.00027244,7]
[404804259,1770581438323,-258.56386,0.00027262,2]
[404804261,1770581438333,-500.0,0.00027371,7]
[404804263,1770581438342,-500.0,0.00027605,7]
[404804265,1770581438352,-177.0,0.00027643,2]
[404804267,1770581438362,-1857.78,0.00027648,3]
[404804269,1770581438371,-464.44,0.00027648,3]
[404804271,1770581438381,-928.88,0.00027721,3]
[404804273,1770581438391,-500.0,0.000278,7]
[404804275,1770581438400,-500.0,0.00027858,7]
[404804277,1770581438410,-500.0,0.00027941,7]
[404804279,1770581438420,-4126.60920926,0.00027969,2]
[404804281,1770581438429,-1000.79142467,0.00028,5]
[404804283,1770581438438,-2061.0,0.00028132,3]
[404804285,1770581438447,-206.0,0.00028222,2]
[404804287,1770581438457,-1857.28129378,0.00028497,2]
[404804289,1770581438467,-500.0,0.00028775,7]
[404804291,1770581438476,-500.0,0.0002886,7]
[404804293,1770581438485,-208.13163387,0.00028979,2]
[404804295,1770581438495,-247.73,0.0002898,10]
[404804297,1770581438508,-206.44,0.0002898,10]
[404804299,1770581438518,-172.03,0.0002898,10]
[404804301,1770581438528,-3652.21780265,0.0002898,2]
[404804303,1770581438538,-519.3574707,0.00028986,6]
[404804305,1770581438547,-16708.47075128,0.0002899,2]
[404804307,1770581438561,-44141.6615806,0.0002899,2]
[404804309,1770581438571,-399.23,0.00029,14]
[404804311,1770581438580,-760.657693,0.00029047,2]
[404804313,1770581438590,-179.80146222,0.0002909,2]
[404804315,1770581438600,-681.546722,0.00029142,2]
[404804317,1770581438610,-720.0,0.00029279,30]
[404804319,1770581438620,-500.0,0.00029447,7]
[404804321,1770581438630,-204.0,0.00029643,2]
[404804323,1770581438639,-500.0,0.00029643,7]
[404804325,1770581438649,-151.0,0.00029682,2]
[404804327,1770581438659,-151.0,0.00029682,2]
[404804329,1770581438669,-151.0,0.00029682,2]
[404804331,1770581438678,-250.0,0.00029682,2]
[404804333,1770581438688,-250.0,0.00029682,2]
[404804335,1770581438698,-151.0,0.00029682,2]
[404804337,1770581438708,-250.0,0.00029682,2]
[404804339,1770581438717,-250.0,0.00029682,2]
[404804341,1770581438726,-151.0,0.00029682,2]
[404804343,1770581438736,-250.0,0.00029682,2]
[404804345,1770581438745,-250.0,0.00029682,2]
[404804347,1770581438755,-151.0,0.00029682,2]
[404804349,1770581438764,-250.0,0.00029682,2]
[404804351,1770581438776,-250.0,0.00029682,2]
[404804353,1770581438785,-180.24690026,0.00029682,2]
[404804355,1770581438794,-250.0,0.00029682,2]
[404804356,1770581438803,-250.0,0.00029682,2]
[404804359,1770581438814,-250.0,0.00029682,2]
[404804360,1770581438823,-250.0,0.00029682,2]
[404804362,1770581438833,-250.0,0.00029682,2]
[404804365,1770581438847,-250.0,0.00029682,2]
[404804367,1770581438856,-250.0,0.00029682,2]
[404804369,1770581438866,-250.0,0.00029682,2]
[404804371,1770581438875,-500.0,0.00029682,2]
[404804373,1770581438885,-250.0,0.00029682,2]
[404804375,1770581438894,-250.0,0.00029682,2]
[404804377,1770581438903,-500.0,0.00029682,2]
[404804378,1770581438912,-250.0,0.00029682,2]
[404804380,1770581438922,-250.0,0.00029682,2]
[404804382,1770581438931,-500.0,0.00029682,2]
[404804384,1770581438941,-250.0,0.00029682,2]
[404804386,1770581438950,-250.0,0.00029682,2]
[404804388,1770581438959,-500.0,0.00029682,2]
[404804390,1770581438969,-250.0,0.00029682,2]
[404804392,1770581438979,-250.0,0.00029682,2]
[404804395,1770581438988,-500.0,0.00029682,2]
[404804397,1770581438998,-250.0,0.00029682,2]
[404804398,1770581439008,-500.0,0.00029682,2]
[404804401,1770581439018,-250.0,0.00029682,2]
[404804402,1770581439028,-500.0,0.00029682,2]
[404804404,1770581439037,-250.0,0.00029682,2]
[404804406,1770581439047,-500.0,0.00029682,2]
[404804408,1770581439056,-250.0,0.00029682,2]
[404804410,1770581439066,-250.0,0.00029682,2]
[404804412,1770581439076,-500.0,0.00029682,2]
[404804414,1770581439085,-250.0,0.00029682,2]
[404804416,1770581439095,-250.0,0.00029682,2]
[404804418,1770581439104,-500.0,0.00029682,2]
[404804420,1770581439113,-335.26760515,0.00029682,2]
[404804422,1770581439122,-250.0,0.00029682,2]
[404804424,1770581439131,-500.0,0.00029682,2]
[404804426,1770581439140,-500.0,0.00029682,2]
[404804428,1770581439149,-500.0,0.00029682,2]
[404804430,1770581439159,-500.0,0.00029682,2]
[404804431,1770581439168,-1000.0,0.00029682,2]
[404804434,1770581439180,-1000.0,0.00029682,2]
[404804436,1770581439189,-1000.0,0.00029682,2]
[404804438,1770581439198,-1000.0,0.00029682,2]
[404804440,1770581439208,-1000.0,0.00029682,2]
[404804442,1770581439217,-1000.0,0.00029682,2]
[404804444,1770581439226,-1000.0,0.00029682,2]
[404804446,1770581439235,-1000.0,0.00029682,2]
[404804448,1770581439244,-286.28525849,0.00029682,2]
[404804450,1770581439254,-250.0,0.00029682,2]
[404804452,1770581439263,-1000.0,0.00029682,2]
[404804454,1770581439272,-250.0,0.00029682,2]
[404804456,1770581439281,-1000.0,0.00029682,2]
[404804457,1770581439290,-250.0,0.00029682,2]
[404804459,1770581439300,-1000.0,0.00029682,2]
[404804461,1770581439309,-250.0,0.00029682,2]
[404804463,1770581439318,-1000.0,0.00029682,2]
[404804465,1770581439327,-250.0,0.00029682,2]
[404804467,1770581439336,-1000.0,0.00029682,2]
[404804469,1770581439346,-250.0,0.00029682,2]
[404804471,1770581439356,-1000.0,0.00029682,2]
[404804473,1770581439365,-250.0,0.00029682,2]
[404804476,1770581439375,-250.0,0.00029682,2]
[404804478,1770581439384,-14608.8712106,0.0002969,2]
[404804479,1770581439394,-1132.38260953,0.000297,2]
[404804482,1770581439403,-820.5002659,0.000297,2]
[404804483,1770581439414,-469.02863032,0.000297,2]
[404804485,1770581439423,-1931.16125749,0.000297,2]
[404804739,1770581442046,-250.0,0.00029682,2]
[404804741,1770581442055,-250.0,0.00029682,2]
[404804743,1770581442065,-250.0,0.00029682,2]
[404804745,1770581442074,-34129.07645038,0.000297,2]
[404804747,1770581442083,-7512.34890813,0.000297,2]
[404805156,1770581446064,-250.0,0.00029682,2]
[404805158,1770581446075,-250.0,0.00029682,2]
[404805160,1770581446087,-250.0,0.00029682,2]
[404805162,1770581446096,-860.18,0.0002969,10]
[404805164,1770581446105,-933.32,0.000297,2]
[404807110,1770582039041,-283.22,0.000236,2]
[404807111,1770582039072,-150.0,0.00023637,2]
[404807112,1770582039100,-33.56,0.00023765,2]
[404807113,1770582039112,-283.22,0.00023765,2]
[404807114,1770582039123,-150.0,0.00023765,2]
[404807115,1770582039135,-33.22,0.00023765,2]
[404807505,1770582640290,-500.0,0.00023801,2]
[404807507,1770582640299,-150.0,0.00023838,2]
[404807509,1770582640309,-500.0,0.00024294,2]
[404807511,1770582640319,-202.11122829,0.00024617,2]
[404807513,1770582640328,-500.0,0.00024747,2]
[404807515,1770582640337,-2129.68989098,0.00025,2]
[404807517,1770582640346,-300.0,0.00025545,10]
[404807519,1770582640356,-300.0,0.00025545,10]
[404807521,1770582640365,-300.0,0.00025545,10]
[404807523,1770582640374,-300.0,0.00025545,10]
[404807525,1770582640383,-300.0,0.00025545,10]
[404807527,1770582640392,-300.0,0.00025545,10]
[404807529,1770582640401,-300.0,0.00025545,10]
[404807531,1770582640413,-300.0,0.00025545,10]
[404807532,1770582640422,-300.0,0.00025545,10]
[404807534,1770582640432,-300.0,0.00025545,10]
[404807536,1770582640441,-300.0,0.00025545,10]
[404807538,1770582640452,-300.0,0.00025545,10]
[404807540,1770582640462,-300.0,0.00025545,10]
[404807542,1770582640471,-300.0,0.00025545,10]
[404807544,1770582640481,-300.0,0.00025545,10]
[404807546,1770582640491,-177.0,0.00025838,2]
[404807548,1770582640501,-208.19778597,0.00025881,2]
[404807550,1770582640511,-500.0,0.00025884,7]
[404807552,1770582640520,-500.0,0.00026042,7]
[404807554,1770582640530,-1000.0,0.00026331,30]
[404807556,1770582640540,-500.0,0.00026623,7]
[404807558,1770582640549,-151.0,0.00026696,2]
[404807560,1770582640558,-151.08022891,0.00026696,2]
[404807562,1770582640568,-1472.9453257,0.00026712,2]
[404807564,1770582640577,-600.0,0.00026886,30]
[404807566,1770582640586,-500.0,0.00027287,7]
[404807568,1770582640601,-150.0,0.00027397,5]
[404807570,1770582640610,-390.0,0.000275,2]
[404807572,1770582640623,-204.0,0.00027838,2]
[404807574,1770582640632,-250.0,0.00027945,5]
[404807576,1770582640641,-168.0,0.0002833,2]
[404807578,1770582640649,-625.24699813,0.00028486,7]
[404807580,1770582640659,-409.91745265,0.00028493,5]
[404807582,1770582640668,-500.0,0.00028505,7]
[404807584,1770582640677,-1420.0,0.00028542,2]
[404807586,1770582640687,-168.0,0.00028617,2]
[404807587,1770582640697,-1420.0,0.00028636,7]
[404807589,1770582640707,-500.0,0.000287,5]
[404807592,1770582640719,-525.0,0.00028725,2]
[404807593,1770582640728,-179.80146222,0.00028809,2]
[404807595,1770582640738,-518.01817178,0.000289,5]
[404807597,1770582640748,-500.0,0.00028912,7]
[404807599,1770582640757,-500.0,0.00029106,7]
[404807601,1770582640766,-1420.0,0.00029118,2]
[404807603,1770582640775,-1420.0,0.00029407,2]
[404807605,1770582640785,-168.0,0.00029415,2]
[404807607,1770582640794,-500.0,0.00029426,7]
[404807609,1770582640803,-500.0,0.00029564,2]
[404807611,1770582640813,-500.0,0.00029564,2]
[404807613,1770582640822,-500.0,0.00029564,2]
[404807615,1770582640831,-500.0,0.00029564,2]
[404807617,1770582640840,-250.0,0.00029564,2]
[404807619,1770582640849,-500.0,0.00029564,2]
[404807620,1770582640859,-250.0,0.00029564,2]
[404807622,1770582640869,-500.0,0.00029564,2]
[404807624,1770582640879,-250.0,0.00029564,2]
[404807626,1770582640889,-500.0,0.00029564,2]
[404807628,1770582640898,-250.0,0.00029564,2]
[404807630,1770582640907,-500.0,0.00029564,2]
[404807632,1770582640917,-250.0,0.00029564,2]
[404807634,1770582640926,-500.0,0.00029564,2]
[404807636,1770582640936,-250.0,0.00029564,2]
[404807639,1770582640946,-500.0,0.00029564,2]
[404807640,1770582640955,-250.0,0.00029564,2]
[404807642,1770582640965,-250.0,0.00029564,2]
[404807644,1770582640975,-250.0,0.00029564,2]
[404807646,1770582640986,-250.0,0.00029564,2]
[404807648,1770582640995,-250.0,0.00029564,2]
[404807650,1770582641004,-291.55415198,0.00029564,2]
[404807652,1770582641013,-250.0,0.00029564,2]
[404807654,1770582641023,-250.0,0.00029564,2]
[404807656,1770582641032,-250.0,0.00029564,2]